Cogmind - Beta 16 @@@ ROGUE MODE // 2026.01.02 @ 18:17:02 Player: qooose Result: Destroyed by Q4-PWB(R) with Subdweller Machine Gun Performance ------------- Evolutions (0) 0 Regions Visited (3) 600 Robots Destroyed (18) 90 Value Destroyed (381) 381 Prototype IDs (2) 40 Alien Tech Used (0) 0 Bonus (0) 0 TOTAL SCORE: 1111 Bonus ------- None Cogmind --------- Core Integrity 0/250 Matter 221/300 Energy 98/125 System Corruption 1% Temperature Cool (0) Movement Walking (120) Location -10/Subcaves Parts ------- > --- POWER (1) -------- Light Ion Engine > --- PROPULSION (2) --- Myomer Leg Myomer Leg > --- UTILITY (2) ------ (None) > --- WEAPON (2) ------- (None) > --- INVENTORY (5) ---- (None) Peak State ------------ > --- POWER ------------ Subdweller Power Source > --- PROPULSION ------- Myomer Leg Myomer Leg > --- UTILITY ---------- Scrap Shield > --- WEAPON ----------- Subdweller Laser Heavy Battle Rifle > --- INVENTORY -------- Light Ion Engine EM Pulse Gun Rocket Launcher [Rating: 26] Favorites ----------- Power Light Ion Engine Engine Light Ion Engine Propulsion Wheel Leg Myomer Leg Wheel Wheel Utility Large Storage Unit Device Terrain Scanner Storage Large Storage Unit Hackware Hacking Suite Protection Scrap Shield Weapon Medium Laser Energy Gun Medium Laser Ballistic Gun Heavy Battle Rifle Ballistic Cannon Light Cannon Launcher Rocket Launcher Special Weapon Mining Laser Build | -11 -10 -10 -10 ------- Run | Yrd Mat Min Sub Slots Evolved . | . . . . Power . | . . . . Propulsion . | . . . . Utility . | . . . . Weapon . | . . . . Parts Attached 23 | 6 4 4 9 Power 2 | 1 . . 1 Engine 2 | 1 . . 1 Core . | . . . . Reactor . | . . . . Propulsion 8 | 2 1 . 5 Treads . | . . . . Leg 4 | . . . 4 Wheel 4 | 2 1 . 1 Hover . | . . . . Flight . | . . . . Utility 5 | 1 2 1 1 Device 1 | . 1 . . Storage 2 | 1 1 . . Processor . | . . . . Hackware 1 | . . 1 . Protection 1 | . . . 1 Artifact . | . . . . Weapon 8 | 2 1 3 2 Energy Gun 4 | 2 . 1 1 Energy Cannon . | . . . . Ballistic Gun 1 | . . . 1 Ballistic Cannon 1 | . 1 . . Launcher 1 | . . 1 . Special Weapon 1 | . . 1 . Impact Weapon . | . . . . Slashing Weapon . | . . . . Piercing Weapon . | . . . . Special Melee Weapon . | . . . . Unidentified Prototypes . | . . . . Corrupted Parts 1 | . . 1 . System Corruption 1 | . . 1 . Parts Lost 7 | . . 1 6 Power 1 | . . . 1 Propulsion . | . . . . Utility 2 | . . 1 1 Weapon 4 | . . . 4 Highest Loss Streak 5 | . . 1 5 To Critical Strikes . | . . . . Average Backups 6 | 2 6 9 4 Power . | . 1 1 . Propulsion 2 | 1 2 3 1 Utility 1 | . . 2 . Weapon 2 | 1 1 3 2 Tool/Special . | . . . . Unused Backups 1 | . . . 1 Power 1 | . . . 1 Propulsion . | . . . . Utility . | . . . . Weapon . | . . . . Tool/Special . | . . . . Average Slot Usage (%) 90 | . 95 95 81 Engine 14 | . 14 14 14 Leg 2 | . . . 8 Wheel 24 | . 28 28 18 Device 6 | . 9 9 . Storage 9 | . 14 14 . Protection 3 | . . . 11 Energy Gun 16 | . 20 14 15 Ballistic Gun 2 | . . . 7 Ballistic Cannon 4 | . 7 4 . Launcher 2 | . . 4 . Special Weapon 2 | . . 4 2 Peak Build Rating 26 | 6 8 10 26 Average Rating 9 | 4 6 8 14 On Entrance 6 | . 6 8 10 Avg Prop Armor Cover (%) . | . . . . Naked Turns . | . . . . Heaviest Build 31 | 12 29 30 31 Greatest Support 50 | 32 32 26 50 Greatest Overweight (x) 9 | . 1 1 9 Average Overweight (x) . | . . . . Largest Inventory Capacity 15 | 8 15 15 15 Average Capacity 10 | 7 9 15 5 Most Carried 11 | 5 8 11 11 Average Carried 6 | 3 6 9 4 Final Capacity 15 | 8 15 15 5 Final Carried 9 | 4 8 9 . Class Distribution -------------------- 100% | Mutant Dominant Class ---------------- Mutant | -10/Materials Mutant | -10/Mines Mutant | -10/Subcaves Resources | -11 -10 -10 -10 ----------- Run | Yrd Mat Min Sub Matter Collected 566 | 223 77 78 188 Remotely . | . . . . Salvage Created 364 | 25 70 48 221 Parts 42 | 4 9 13 16 Haulers Intercepted . | . . . . Recyclers Shooed . | . . . . Parts Field Recycled . | . . . . Retrieved Matter . | . . . . Parts Self-Destructed 4 | . . . 4 Prevented . | . . . . Parts Restored . | . . . . Kills | -11 -10 -10 -10 ------- Run | Yrd Mat Min Sub Combat Hostiles Destroyed 12 | . 5 . 7 Guns 8 | . 3 . 5 Cannons 2 | . 2 . . AOE 2 | . . . 2 Classes Destroyed 6 | 1 2 2 1 Worker 1 | . . 1 . Builder 2 | . . 2 . Tunneler 2 | 1 . 1 . Operator 1 | . 1 . . Swarmer 5 | . 5 . . Subdweller 7 | . . . 7 Best Kill Streak 4 | 1 3 3 4 Combat Bots Only 4 | . 3 . 4 Max Kills in Single Turn 3 | 1 1 3 2 Gunslinging . | . . . . Exploded 1 | . . . 1 Melee . | . . . . Uniques/NPCs Destroyed . | . . . . Combat | -11 -10 -10 -10 -------- Run | Yrd Mat Min Sub Hostile Shots Fired 114 | . 35 . 79 Missed 44 | . 15 . 29 Hits 70 | . 20 . 50 Projectile 70 | . 20 . 50 Critical Strikes 3 | . 1 . 2 Damage Taken 1276 | . 149 29 1098 Core 264 | . 28 . 236 Absorbed by Shields . | . . . . Core Remaining (%) 100 | 100 . . . Volleys Fired 66 | 2 16 19 29 Largest 2 | 2 2 1 2 Hottest 100 | 90 90 100 90 Shots Fired 104 | 4 31 19 50 Gun 68 | 4 17 . 47 Cannon 14 | . 14 . . Launcher 5 | . . 2 3 Special 17 | . . 17 . Kinetic 31 | . 14 . 17 Thermal 50 | 2 15 17 16 Explosive 5 | . . 2 3 Electromagnetic 18 | 2 2 . 14 Robot Hit Streak 15 | 3 6 . 15 Robot Miss Streak 5 | . 5 1 3 Penetration Max . | . . . . Secondary Targets . | . . . . Shots Hit Robots 51 | 3 14 . 34 Core Hits 27 | 1 6 5 15 Critical Kills . | . . . . Critical Parts Destroyed . | . . . . Critical Strikes 1 | 1 . . . Burn 1 | 1 . . . Melee Attacks . | . . . . Impact . | . . . . Slashing . | . . . . Piercing . | . . . . Sneak Attacks . | . . . . Combat Hostiles . | . . . . Follow-up Attacks . | . . . . Damage Inflicted 1438 | 41 208 186 1003 Guns 646 | 41 106 . 499 Cannons 102 | . 102 . . Explosions 690 | . . 186 504 Melee . | . . . . Ramming . | . . . . Kinetic 328 | . 102 . 226 Thermal 250 | 13 73 . 164 Explosive 690 | . . 186 504 Electromagnetic 170 | 28 33 . 109 Impact . | . . . . Slashing . | . . . . Piercing . | . . . . Highest Corruption 1 | . . 1 1 Average Corruption 1 | . . 1 1 Corruption Purged . | . . . . Corruption Blocked . | . . . . Effects 5 | . . . 5 Message Errors 1 | . . . 1 Matter Fused 1 | . . . 1 Energy Discharges 2 | . . . 2 Weapon Failures 1 | . . . 1 Overload Shots . | . . . . Overflow Damage 28 | . 3 25 . Projectiles 3 | . 3 . . Explosions 25 | . . 25 . Melee . | . . . . Knockbacks 1 | . 1 . . Impact . | . . . . Kinetic 1 | . 1 . . Secondary . | . . . . Self-Inflicted Damage 78 | . . 29 49 Shots 2 | . . 1 1 Rammed . | . . . . Targets Rammed . | . . . . Kicked . | . . . . Crushed . | . . . . Highest Temperature 120 | 80 72 120 . Average Temperature 45 | 45 28 57 . Received Heat Transfer 219 | . . . 219 Siege Activations . | . . . . Martial Activations . | . . . . Shielding Activations . | . . . . Robots Disrupted . | . . . . Combat Hostiles . | . . . . Robots Corrupted . | . . . . Combat Hostiles . | . . . . Parts Fried . | . . . . Impact Corruptions . | . . . . Robots Melted . | . . . . Combat Hostiles . | . . . . Parts Melted 2 | . . . 2 Heat Transferred 814 | 111 222 . 481 Parts Sabotaged . | . . . . Parts Stolen . | . . . . Parts Stripped . | . . . . Power Chain Reactions . | . . . . Alert | -11 -10 -10 -10 ------- Run | Yrd Mat Min Sub Maximum Alert Level . | . . . . Low Security (%) 100 | 100 100 100 . Level 1 . | . . . . Level 2 . | . . . . Level 3 . | . . . . Level 4 . | . . . . Level 5 . | . . . . High Security . | . . . . Max Security . | . . . . Peak Influence 91 | 5 91 23 . Initial 23 | . 3 23 . Average 14 | . 33 3 . Influence Increases 235 | 5 186 44 . Destroy 0b10 Robot/C 100 | . 100 . . Destroy 0b10 Robot/NC 30 | 5 5 20 . Destroy Leader 10 | . 10 . . Successful Hack 40 | . 40 . . Disable Machine 15 | . . 15 . Destroy Structure 10 | . 1 9 . Lose Combat Pursuer 30 | . 30 . . Influence Decreases 235 | . 130 105 . Entered New Map 40 | . 2 38 . Time Decay 185 | . 128 57 . Lost Part 10 | . . 10 . Squads Dispatched . | . . . . Investigation . | . . . . Extermination . | . . . . Reinforcement . | . . . . Assault . | . . . . Garrison . | . . . . Intercept . | . . . . Searches Triggered . | . . . . Construction Impeded . | . . . . Haulers Reinforced . | . . . . Active Scanning Responses . | . . . . Cargo Convoy Interrupts . | . . . . Stealth | -11 -10 -10 -10 --------- Run | Yrd Mat Min Sub Distress Signals . | . . . . Communications Jammed . | . . . . Distress Signals . | . . . . Times Spotted 25 | . 12 . 13 Peak Tracking Total 7 | . 6 . 7 Tactical Retreats 1 | . 1 . . Traps | -11 -10 -10 -10 ------- Run | Yrd Mat Min Sub Traps Triggered . | . . . . Indirectly . | . . . . Trap Hack Attempts . | . . . . Triggered . | . . . . Disarmed . | . . . . Reprogrammed . | . . . . Reused . | . . . . Traps Extracted . | . . . . Installed . | . . . . Triggered . | . . . . Machines | -11 -10 -10 -10 ---------- Run | Yrd Mat Min Sub Machines Disabled 1 | . . 1 . Max in Single Turn 1 | . . 1 . Machines Repaired . | . . . . Machines Dismantled . | . . . . Machines Sabotaged . | . . . . Overloaded Fab Kills . | . . . . Hacking | -11 -10 -10 -10 --------- Run | Yrd Mat Min Sub Machines Accessed 5 | . 5 . . Terminals 5 | . 5 . . Fabricators . | . . . . Repair Stations . | . . . . Recycling Units . | . . . . Scanalyzers . | . . . . Garrison Access . | . . . . Total Hacks 14 | . 14 . . Successful 9 | . 9 . . Failed 5 | . 5 . . Catastrophic . | . . . . Database Lockouts . | . . . . Manual . | . . . . Terminals 14 | . 14 . . Fabricators . | . . . . Repair Stations . | . . . . Recycling Units . | . . . . Scanalyzers . | . . . . Garrison Access . | . . . . Terminal Hacks 9 | . 9 . . Record 2 | . 2 . . Prototype ID Bank 1 | . 1 . . Alert Level 1 | . 1 . . Locate Traps 4 | . 4 . . Recall Reinforcements 1 | . 1 . . Fabricator Hacks . | . . . . Repair Station Hacks . | . . . . Recycling Unit Hacks . | . . . . Scanalyzer . | . . . . Garrison Access Hacks . | . . . . Unauthorized Hacks . | . . . . Terminals . | . . . . Fabricators . | . . . . Repair Stations . | . . . . Recycling Units . | . . . . Scanalyzers . | . . . . Garrison Access . | . . . . Data Cores Recovered 1 | . 1 . . Used 1 | . 1 . . Hacking Detections 3 | . 3 . . Full Trace Events . | . . . . Feedback Events . | . . . . Feedback Blocked . | . . . . Robot Schematics Acquired . | . . . . Robots Built . | . . . . Authchips . | . . . . Time . | . . . . Total Robot Build Rating . | . . . . Part Schematics Acquired . | . . . . Parts Built . | . . . . Authchips . | . . . . Time . | . . . . Total Part Build Rating . | . . . . Part Studies Acquired . | . . . . Parts Repaired . | . . . . Time . | . . . . Parts Recycled . | . . . . Recycled Matter . | . . . . Retrieved Matter . | . . . . Retrieved Components . | . . . . Parts Scanalyzed . | . . . . Part Schematics Acquired . | . . . . Parts Damaged . | . . . . Bothacking | -11 -10 -10 -10 ------------ Run | Yrd Mat Min Sub Used RIF Installer . | . . . . Robots Hacked . | . . . . Non-combat . | . . . . Combat . | . . . . Robot Hacks Applied . | . . . . Relay Couplers Released . | . . . . Fabnet Peak Effective % . | . . . . Robots Rewired . | . . . . Allies Hacked . | . . . . Hacks Repelled . | . . . . Allies | -11 -10 -10 -10 -------- Run | Yrd Mat Min Sub Total Allies . | . . . . Largest Group . | . . . . Highest-Rated Group . | . . . . Highest-Rated Ally . | . . . . Total Orders . | . . . . Ally Attacks . | . . . . Total Damage . | . . . . Kills . | . . . . Allies Corrupted . | . . . . Allies Melted . | . . . . Intel | -11 -10 -10 -10 ------- Run | Yrd Mat Min Sub Active Infowar (turns) 574 | . 234 340 . Terrain 574 | . 234 340 . Robot Analysis Total . | . . . . Derelict Logs Recovered 1 | . . 1 . Drone Launches . | . . . . Drone Recoveries . | . . . . Exploration | -11 -10 -10 -10 ------------- Run | Yrd Mat Min Sub Turns Passed 1305 | 71 332 504 398 Spaces Moved 1003 | 53 286 402 262 Core 14 | 12 . . 2 Treads . | . . . . Legs 64 | . . . 64 Wheels 925 | 41 286 402 196 Hover . | . . . . Flight . | . . . . Fastest Speed 50 | 50 90 90 90 Average Speed 99 | 88 94 101 102 Slowest Speed 500 | 100 105 105 500 Overloaded Moves . | . . . . Propulsion Burnouts . | . . . . Robots Hopped . | . . . . Potential Cave-ins . | . . . . Cave-ins Triggered . | . . . . Exploration Rate (%) 43 | 3 55 92 22 Regions Visited 3 Branch Regions 2 Pre-discovered Areas 2 | . . 2 . Known Exits Taken . | . . . . Unknown Exits Taken 3 | 1 1 1 . Scrap Searched 1 | . . 1 . Spaces Dug 22 | . . 7 15 Terrain Destroyed 62 | . . 21 41 Melee . | . . . . Projectile 10 | . . 8 2 AOE 52 | . . 13 39 Terrain Rammed . | . . . . Walls Destroyed . | . . . . Machines Disabled . | . . . . Actions | -11 -10 -10 -10 --------- Run | Yrd Mat Min Sub Total 1176 | 73 316 444 343 Wait 30 | 3 5 15 7 Move 1000 | 52 285 401 262 Hop . | . . . . Pick Up 29 | 10 5 3 11 Fast Attach . | . . . . Attach 21 | 6 2 3 10 Detach 2 | . 1 1 . Swap 10 | . 2 1 7 Drop 15 | . . 1 14 Fire 66 | 2 16 19 29 Melee . | . . . . Ram . | . . . . Kick . | . . . . Crush . | . . . . Escape Stasis . | . . . . Rewire . | . . . . Trap . | . . . . Miscellaneous 3 | . . . 3 Route ------- -11/Scrapyard -10/Materials (discovered 2 exits: [*Mat] / [*Min]) -10/Mines (discovered 3 exits: [*Mat x2] / [*Sub]) -10/Subcaves History --------- Turn | Location | Event 16 | -11/Scrapyard | Discovered new exit (range 16) 72 | -11/Scrapyard | Entered Materials 198 | -10/Materials | Discovered new exit (range 9) 301 | -10/Materials | Build established: Mutant 335 | -10/Materials | Discovered new exit (range 14) 404 | -10/Materials | Entered Mines 405 | -10/Mines | Learned location of Storage (-7) 474 | -10/Mines | Discovered new exit (range 15) 495 | -10/Mines | Received a Rocket Launcher from a helpful Derelict 559 | -10/Mines | Discovered new exit (range 7) 589 | -10/Mines | Discovered new exit (range 11) 619 | -10/Mines | Learned location of Zion (-6) 908 | -10/Mines | Entered Subcaves 1060 | -10/Subcaves | Shifting Twisted Machinery released Hvy. Battle Rifle 1190 | -10/Subcaves | Ambushed by swarm of Subdwellers 1270 | -10/Subcaves | Core integrity fell below 50% 1290 | -10/Subcaves | Core integrity fell below 20% 1306 | -10/Subcaves | Destroyed by Q4-PWB(R) with Subdweller Machine Gun Last Messages --------------- NS-20Z(R) destroyed. 7I-8R6(R) destroyed. [Achievement: Do Not Disturb] W6-7I8(R): "ARGHSUB!" Rocket Launcher destroyed. Sub. Power Source destroyed. QN-CBA(R) affixes Scrap Shield Fragment to Scrap Shield. Q4-PWB(R) affixes Scrap Shield Fragment to Scrap Shield. Hvy. Battle Rifle destroyed. W6-7I8(R) affixes Scrap Shield Fragment to Scrap Shield. SF-DFL(R) destroyed. The unstable cave ceiling collapses. Disposable Heat Sink crushed. System corrupted: Energy discharge (-38). Q4-PWB(R) affixes Scrap Shield Fragment to Scrap Shield. EM Pulse Gun destroyed. Map ----- +----------------------------------------------------+ | ?????????????????????????????????????????????????? | | ?????????????????????????????????????????????????? | | ?????????????????????????????????????????????????? | | ?????????????????????????????????????????????????? | | ?????????????????????????????????????????????????? | | ?????????????????????????????????????????????????? | | ?????????????????????????????????????????????????? | | ?????????????????????????????????????????????????? | | ?????????????????????????????????????????????????? | | ?????????????????????????????????????????????????? | | ?????????????????????????????????????????????????? | | ?????????????????????????????????????????????????? | | ?????????????????????????????????????????????????? | | ?????????????????????????????????????????????????? | | ?????????????????????????????????????????????????? | | ?????????????????????????????????????????????????? | | ?????????????????????????????????????????????????? | | ?????????????????????????????????????????????????? | | ?????????????????????????????????????????????????? | | ?????????????????????????????????????????????????? | | ?????????????????????????????????????????????????? | | ?????????????????????#####??##???????????????????? | | ?????????????????????# ### #???????????????????? | | ????????????????????## ##??????????????????? | | ????????????????????# #??????????????????? | | ????????????????????# R@ ##??????????????????? | | ????????????????????# &% #???????????????????? | | ?????????????????# !&## ##???????????????????? | | ?????###?????????# =R ?##????????????????????? | | ???? #???????# &% ???????????????????????? | | ????? #??????### #!!% #???????????????????????? | | ?????? #######?# [ = ???????????????????????? | | ??????# ## # &%* #???????????????????????? | | ????### ## != #???????????????????????? | | ????? #?# ####?????????????????????? | | ?????? #?# ##" ????????????????? | | ???????# #?# %???????????????? | | ??????## #?# ###" ???????????????? | | ?##?### #?# #????" ???????????????? | | # ### #### ##????????????????????? | | # ### #??????????????????? | | # #????????????????? | | # #????????????????? | | #" " ##?????????????????? | | #???# "" #??????????????????? | | ####?# & " ### ??????????????????? | | ## ### " ##??# #??????????????????? | | ### " ######????#####??????????????????? | | ### #????????????????????????????????? | | #### #???????????????????????????????? | +----------------------------------------------------+ Best States ------------- Heat Dissipation 25 Energy Generation 15 Energy Capacity 200 Matter Stores 292 Matter Capacity 300 Sight Range 16 Terrain Scan Range 14 Terrain Scan Density 10 Armor Coverage 800 Evasion (%) 55 Offensive Hacking 10 Item Schematics ----------------- None Robot Schematics ------------------ None Fabricated ------------ Nothing Repaired ---------- Nothing Studied --------- None Alien Tech Used ----------------- None Achievements -------------- A Problem For Future Me Do Not Disturb Dynamic Key Survival Of The Most Covered Challenges ------------ None Game ------ Seed ClaymoresLightRecalibrator Manual? 0 Play Time 00:28:33 Cumulative 3.4 hours Start 2026.01.02 @ 17:25:53 End 2026.01.02 @ 18:17:02 Sessions 1 Manual Loads 0 Difficulty Rogue Special Mode None Game No. 7 Rogue 7 Adventurer 0 Explorer 0 Win Type - Total 0 Types 0/0/0/0/0/0/0/0/0/0 Lore% 1 Gallery% 7 Achievement% 7 Wizard Run 0 Options --------- Layout 1 ASCII 0 Keyboard 0 Movement Mouse Keybinds 0 Fullscreen 1 Font 24/Smallcaps Map View 50x35 Zoom Use 0% Tactical HUD 0 Map Filters NONE Filters NONE Steam 1 RUN: cf831aff-cb20-4d51-9e3f-1a1a3cd4ba90